bitfinex/quotes_ETHUSD_20220226
["timestamp","ask_amount","ask_price","bid_price","bid_amount"]
[1645836755769,0.23830622,2829.7,2829.5,0.00603626]
[1645836755973,3.83830622,2829.7,2829.5,0.00603626]
[1645836756575,3.83830622,2829.7,2828.8,0.35]
[1645836756775,3.83830622,2829.7,2829.1,0.35]
[1645836756776,1.34974584,2829.2,2829.1,0.35]
[1645836756978,1.34974584,2829.2,2828.6,0.00532084]
[1645836757181,1.43357491,2828.7,2828.4,0.5]
[1645836757382,1.43357491,2828.7,2828.5,0.00532084]
[1645836757576,0.1414,2828.6,2828.4,0.5]
[1645836757777,0.2984248,2828.6,2828.4,0.5]
[1645836758178,0.2984248,2828.6,2828.4,0.5060382]
[1645836758885,0.22345441,2828.5,2828.4,0.5060382]
[1645836759082,0.36485441,2828.5,2828.4,3.82e-05]
[1645836759379,0.36485441,2828.5,2828.4,0.00587774]
[1645836759380,0.78985441,2828.5,2828.4,0.00587774]
[1645836760222,1.44214632,2828.1,2827.3,0.00532084]
[1645836760421,1.44214632,2828.1,2827.4,0.33384712]
[1645836760422,0.1414,2828.0,2827.4,0.33384712]
[1645836760623,1.58354632,2828.1,2827.2,0.35]
[1645836761025,1.73875716,2828.1,2827.2,0.35]
[1645836761226,1.58354632,2828.1,2827.2,0.35]
[1645836761532,0.2139116,2829.0,2827.6,0.35]
[1645836761737,8.10502052,2829.1,2827.6,0.35]
[1645836761927,1.5912,2829.1,2827.7,0.00532084]
[1645836762131,2.8996,2829.6,2828.4,0.35]
[1645836762132,0.1414,2829.0,2828.4,0.35]
[1645836762328,1.27775825,2829.0,2828.4,0.35532084]
[1645836762529,1.13635825,2829.0,2827.7,1.0038063]
[1645836762728,1.13635825,2829.0,2828.2,0.35]
[1645836762927,1.27775825,2829.0,2828.2,0.35]
[1645836763129,1.27775825,2829.0,2827.8,0.00532084]
[1645836763392,1.13635825,2829.0,2828.5,0.35]
[1645836763590,1.13635825,2829.0,2828.1,0.30532084]
[1645836763791,1.13635825,2829.0,2828.2,0.35]
[1645836764095,1.13635825,2829.0,2828.3,0.00603847]
[1645836764693,1.27775825,2829.0,2828.3,0.00603847]
[1645836764894,1.27775825,2829.0,2828.2,0.35]
[1645836765292,1.27775825,2829.0,2828.3,0.00603855]
[1645836765900,3.7414,2829.0,2828.6,0.35]
[1645836766096,3.6,2829.0,2828.6,0.35]
[1645836766497,3.6,2829.0,2828.4,0.35]
[1645836766901,1.31256345,2828.9,2828.4,0.35]
[1645836767527,1.31256345,2828.9,2828.4,0.65]
[1645836767930,3.6,2829.0,2828.4,0.65]
[1645836768127,3.6,2829.0,2828.3,0.00603855]
[1645836768333,3.6,2829.0,2828.9,0.35]
[1645836768527,3.6,2829.0,2828.6,0.35]
[1645836768729,3.6,2829.0,2828.8,0.35]
[1645836769232,3.6,2829.0,2828.6,0.35]
[1645836769628,3.6,2829.0,2828.6,0.65]
[1645836770330,3.6,2829.0,2828.8,0.35]
[1645836770529,3.6,2829.0,2828.8,0.65]
[1645836772134,15.69062,2830.6,2828.8,0.65]
[1645836772135,0.01098306,2830.3,2829.0,0.3533]
[1645836772339,0.01098306,2830.3,2830.2,0.35]
[1645836772529,0.01098306,2830.3,2830.2,0.65]
[1645836773926,0.35894443,2831.6,2830.2,0.65]
[1645836773927,0.00330829,2830.8,2830.2,0.65]
[1645836774129,0.00330829,2830.8,2830.2,0.3]
[1645836774327,0.00330829,2830.8,2830.7,0.35]
[1645836774727,0.00330829,2830.8,2830.7,0.65]
[1645836775027,0.35702683,2831.6,2830.7,0.35]
[1645836775028,0.00266373,2831.1,2830.7,0.35]
[1645836775232,0.00266373,2831.1,2830.4,0.3]
[1645836775428,0.00266373,2831.1,2830.4,0.65]
[1645836775629,0.00266373,2831.1,2830.4,0.35]
[1645836775829,1.30058265,2831.1,2830.4,0.65]
[1645836776029,4.90058265,2831.1,2830.4,0.65]
[1645836776330,3.60266373,2831.1,2830.7,0.35]
[1645836776529,3.6,2831.1,2830.7,0.35]
[1645836777331,0.1411,2831.2,2830.4,1.48347]
[1645836777532,0.1411,2831.2,2830.8,0.35]
[1645836777735,0.0026637,2831.5,2830.8,0.35]
[1645836778377,0.1412,2831.4,2830.8,0.35]
[1645836778578,0.0026637,2831.5,2831.3,0.35]
[1645836778778,0.0026637,2831.5,2830.8,0.15556786]
[1645836778979,0.3562,2831.6,2830.5,1.3]
[1645836779178,0.3562,2831.6,2830.6,1.0]
[1645836779381,0.3562,2831.6,2830.5,3.5]
[1645836779579,0.3562,2831.6,2830.6,0.3533]
[1645836779782,0.3562,2831.6,2830.5,5.6832834]
[1645836779981,0.3562,2831.6,2830.6,0.3533]
[1645836780186,0.15186274,2831.6,2830.8,16.1533]
[1645836780383,0.15186274,2831.6,2831.0,0.3533]
[1645836780587,0.15186274,2831.6,2831.2,0.3533]
[1645836780785,0.15186274,2831.6,2831.1,3.8]
[1645836780985,0.15186274,2831.6,2831.2,0.3533]
[1645836781185,6.274e-05,2831.6,2831.2,0.3533]
[1645836781391,0.00235036,2831.6,2831.2,0.3533]
[1645836781788,0.00235036,2831.6,2831.1,0.3]
[1645836782040,0.00235036,2831.6,2831.3,1.23641]
[1645836782228,0.00235036,2831.6,2831.4,0.3]
[1645836782432,0.00235036,2831.6,2831.5,5.3533]
[1645836782628,0.00235036,2831.6,2831.5,16.27888594]
[1645836782629,0.00014706,2831.6,2831.5,16.27888594]
[1645836782827,0.01038561,2832.0,2831.9,1.0]
[1645836783231,0.01038561,2832.0,2831.9,1.3]
[1645836783428,0.01038561,2832.0,2831.9,1.0]
[1645836783429,1.05131349,2832.0,2831.9,1.0]
[1645836783627,1.05131349,2832.0,2831.3,7.5418]
[1645836783628,0.01038561,2832.0,2831.3,7.5418]
[1645836783828,0.01038561,2832.0,2831.3,8.5418]
[1645836784229,0.1411,2832.8,2831.3,8.5418]
[1645836784430,0.1411,2832.8,2831.3,7.5418]
[1645836784431,1.05477932,2832.7,2831.3,7.5418]
[1645836784632,1.24317323,2832.5,2831.2,1.0]
[1645836784828,1.24317323,2832.5,2830.9,0.8831296]
[1645836785034,1.1552809,2831.9,2831.0,0.88322]
[1645836785231,0.19078149,2832.6,2831.0,0.88322]
[1645836785232,0.34787303,2832.5,2831.0,0.88322]
[1645836785431,1.0537078,2832.4,2831.0,0.88322]
[1645836785632,0.1411,2832.3,2831.0,0.88322]
[1645836785884,0.1411,2832.4,2831.0,0.88322]
[1645836786486,1.39703436,2832.2,2831.0,0.88322]
[1645836786686,0.00273474,2831.8,2831.0,1.18322]
[1645836786890,1.4109554,2831.7,2831.0,1.18322]
[1645836787087,0.00273474,2831.8,2831.0,1.18322]
[1645836787691,0.00273455,2831.7,2831.0,1.18322]
[1645836788288,0.00273455,2831.7,2831.1,10.8]
[1645836788488,0.00273455,2831.7,2831.4,0.3533]
[1645836788691,0.00273455,2831.7,2831.4,1.96127]
[1645836789089,0.00546905,2831.7,2831.4,1.96127]
[1645836789288,6.905e-05,2831.7,2831.5,5.3533]
[1645836789550,1.99672967,2833.4,2831.8,0.8828076]
[1645836789551,0.1411,2833.4,2831.8,0.8828076]
[1645836789738,7.67465184,2834.0,2831.8,0.8828076]
[1645836789739,0.1411,2833.8,2832.2,0.3533]
[1645836789933,0.1411,2833.8,2832.3,0.425]
[1645836790133,0.1411,2833.9,2832.3,0.63698547]
[1645836790338,1.12799127,2833.7,2832.6,0.5]
[1645836790534,1.26909127,2833.7,2832.5,1.0]
[1645836790734,1.12799127,2833.7,2832.5,1.94476769]
[1645836790937,1.12799127,2833.7,2833.4,0.5]
[1645836791141,1.16620539,2833.9,2833.4,0.5]
[1645836791340,1.16620539,2833.9,2832.5,1.3]
[1645836791540,0.00220218,2833.3,2832.5,0.3]
[1645836791739,0.00220218,2833.3,2832.1,0.3]
[1645836791941,0.1411,2833.2,2832.2,0.3]
[1645836792139,0.00220218,2833.3,2832.1,0.8827852]
[1645836792340,0.00220218,2833.3,2832.1,1.7656552]
[1645836792541,0.00220218,2833.3,2832.1,1.13287]
[1645836792739,0.00220218,2833.3,2832.2,0.3]
[1645836793144,0.00220218,2833.0,2832.0,7.7943]
[1645836793383,0.00220218,2833.0,2831.7,3.3572]
[1645836793384,0.00220218,2833.0,2831.7,0.5008]
[1645836793580,0.14330218,2833.0,2831.7,0.5008]
[1645836794182,1.18997216,2832.3,2831.7,0.5008]
[1645836795783,0.00237594,2832.1,2831.7,0.5008]
[1645836796787,0.00237594,2832.0,2831.7,0.5008]
[1645836797222,1.2396399,2831.9,2831.7,0.5008]
[1645836797424,1.2396399,2831.9,2831.7,0.499203]
[1645836797827,1.2396399,2831.9,2831.7,0.0008]
[1645836801577,0.00172888,2832.0,2831.7,0.0008]
[1645836802878,0.00202409,2832.0,2831.7,0.0008]
[1645836803477,0.00809432,2832.7,2831.7,0.0008]
[1645836803678,1.02707175,2832.7,2831.9,0.88293]
[1645836803880,0.00202409,2832.0,2831.9,1.18293]
[1645836804078,0.00202409,2832.0,2831.9,1.48293]
[1645836804730,1.12785308,2832.7,2831.9,1.48293]
[1645836805238,0.1411,2833.2,2831.9,0.3]
[1645836805632,0.1411,2833.2,2831.7,0.88378]
[1645836805828,0.1411,2833.2,2831.8,0.3]
[1645836806230,0.00268867,2832.7,2831.8,0.3]
[1645836806435,1.35085495,2832.3,2831.8,0.3]
[1645836806635,0.00268867,2832.7,2831.8,0.3]
[1645836807234,0.1411,2833.0,2831.8,0.3]
[1645836807534,0.0008066,2832.4,2831.8,0.3]
[1645836808373,1.18729685,2832.5,2831.8,0.3]
[1645836808771,0.0008066,2832.2,2831.8,0.3]
[1645836809578,0.1411,2832.7,2831.8,0.3]
[1645836809775,0.1411,2833.2,2831.8,0.3]
[1645836809978,0.0008066,2832.1,2831.8,0.3]
[1645836810178,0.0008066,2832.1,2831.7,0.88378]
[1645836810377,0.0008066,2832.1,2831.7,0.0008]
[1645836810785,0.0008066,2832.1,2831.7,0.3008]
[1645836810981,1.19101642,2832.2,2831.7,0.3008]
[1645836811185,0.00268859,2832.1,2831.7,0.00682015]
[1645836812029,1.05566656,2832.6,2831.7,0.0008]
[1645836812220,0.1411,2832.5,2831.7,0.0008]
[1645836812424,0.00268859,2832.1,2831.7,0.00682015]
[1645836812721,1.10299577,2832.1,2831.7,0.00682015]
[1645836813326,1.10299577,2832.1,2831.7,0.0008]
[1645836813522,0.1411,2833.1,2831.7,0.0008]
[1645836813723,1.05599872,2833.0,2831.7,0.0008]
[1645836814023,0.1411,2832.9,2831.7,0.0008]
[1645836814226,1.05599872,2832.8,2831.7,0.0008]
[1645836814424,1.05599872,2832.8,2831.9,0.88296]
[1645836814724,0.0008066,2832.4,2831.9,1.53626]
[1645836814928,0.0008066,2832.4,2831.9,1.83626]
[1645836815129,0.0008066,2832.4,2831.9,1.48296]
[1645836815767,1.05849163,2832.8,2831.9,1.48296]
[1645836815768,1.15211962,2832.7,2831.9,1.48296]
[1645836815974,0.00268195,2832.3,2831.9,1.48296]
[1645836816774,0.01072575,2832.8,2831.9,1.48296]
[1645836816973,0.1411,2833.4,2831.9,1.48296]
[1645836817176,0.00268195,2832.2,2832.0,0.40795379]
[1645836817378,8.195e-05,2832.2,2832.0,11.20795379]
[1645836817575,0.01072556,2832.8,2832.3,10.8]
[1645836817775,0.01072556,2832.8,2832.4,0.40795379]
[1645836817975,0.01072556,2832.8,2832.5,1.0]
[1645836818175,0.65400752,2833.7,2832.5,1.0]
[1645836818378,0.65400752,2833.7,2832.5,1.3]
[1645836818777,0.65400752,2833.8,2832.5,1.3]
[1645836819087,1.30817446,2833.7,2832.8,0.8825164]
[1645836819282,1.06211241,2833.6,2832.7,3.6475528]
[1645836819534,0.00080263,2833.3,2832.7,4.2475528]
[1645836820328,0.00080263,2833.3,2832.7,2.48252]
[1645836820528,1.16401251,2833.2,2832.7,2.48252]
[1645836820728,1.06448783,2833.1,2832.7,1.48252]
[1645836820932,0.00237542,2833.1,2832.7,1.48252]
[1645836821138,1.0634797,2833.1,2832.7,0.6]
[1645836821334,0.86023882,2832.6,2832.5,1.0]
[1645836821537,0.86023882,2832.6,2832.2,1.76549]
[1645836821934,0.86023882,2832.6,2832.3,0.40656424]
[1645836822233,0.86023882,2832.6,2832.3,12.08924754]
[1645836822431,0.86023882,2832.6,2832.4,0.40693037]
[1645836822833,0.86023882,2832.6,2832.4,0.70693037]
[1645836823035,0.86023882,2832.6,2832.4,0.3]
[1645836823279,0.86261424,2832.6,2832.4,0.3]
[1645836823478,0.86261424,2832.6,2832.5,0.40686831]
[1645836823685,0.86261424,2832.6,2832.5,1.40686831]
[1645836824183,0.86023882,2832.6,2832.5,15.70686831]
[1645836824584,0.86023882,2832.6,2832.5,2.40686831]
[1645836824784,0.86023882,2832.6,2832.5,1.40688703]
[1645836825983,0.86023882,2832.6,2832.5,1.0]
[1645836826193,2.26538314,2832.6,2832.5,1.0]
[1645836826384,2.26538314,2832.6,2832.0,1.76565]
[1645836826385,3.32813834,2832.6,2832.0,1.76565]
[1645836826685,1.04506557,2832.1,2831.7,1.0008]
[1645836826887,1.04506557,2832.1,2831.8,0.00568214]
[1645836827330,0.99506557,2832.1,2831.8,0.00568214]
[1645836827828,0.99506557,2832.1,2831.7,0.0008]
[1645836828034,0.99506557,2832.1,2831.8,0.005682]
[1645836828931,0.99506557,2832.1,2831.7,0.0008]
[1645836829133,0.99506557,2832.1,2831.8,0.00588837]
[1645836830029,0.99506557,2832.1,2831.7,0.0008]
[1645836830429,0.99506557,2832.1,2831.8,0.00588837]
[1645836831286,0.99506557,2832.1,2831.7,0.0008]
[1645836831481,0.99506557,2832.1,2831.8,0.00588837]
[1645836832079,1.06286549,2832.0,2831.8,0.00588837]
[1645836832479,1.06286549,2832.0,2831.7,0.0008]
[1645836832781,0.99506557,2832.1,2831.8,0.00588637]
[1645836833784,0.99506557,2832.1,2831.7,0.0008]
[1645836834081,0.99506557,2832.1,2831.8,0.00588633]
[1645836836037,1.0636359,2832.0,2831.8,0.00588633]
[1645836836239,1.0636359,2832.0,2831.7,0.0008]
[1645836836445,1.0636359,2832.0,2831.8,0.00568805]
[1645836837342,1.0636359,2832.0,2831.7,0.0008]
[1645836838978,1.0636359,2832.0,2831.6,1.18305]
[1645836838979,1.0636359,2832.0,2831.3,1.0]
[1645836839187,1.0636359,2832.0,2831.0,0.8464606]
[1645836839188,0.1411,2831.9,2831.0,0.8833]
[1645836839381,0.1411,2831.9,2830.5,0.4984]
[1645836839382,5.65400752,2831.8,2830.5,0.4984]
[1645836839583,1.10618776,2830.6,2830.5,0.4484]
[1645836839977,1.10618776,2830.6,2829.6,0.00532084]
[1645836839978,1.43621319,2829.8,2829.6,0.00532084]
[1645836840276,0.1413,2830.6,2829.7,0.40389599]
[1645836840479,0.1413,2830.6,2829.8,0.40389599]
[1645836840781,0.1413,2830.6,2829.4,0.00532084]
[1645836840782,1.06655684,2830.5,2829.4,0.00532084]
[1645836840979,1.06655684,2830.5,2829.5,0.4039117]
[1645836840980,0.1413,2830.4,2829.5,0.4039117]
[1645836841184,1.26962141,2829.6,2829.1,0.00532084]
[1645836841381,0.1413,2830.5,2830.2,0.71232155]
[1645836841782,0.1413,2830.9,2830.2,0.71232155]
[1645836842054,0.18428306,2831.1,2830.2,0.71232155]
[1645836842241,1.20752626,2831.0,2830.2,0.71232155]
[1645836842539,1.1487451,2830.3,2830.2,0.71232155]
[1645836843641,1.1487451,2830.3,2830.2,1.01232155]
[1645836845242,1.1487451,2830.3,2830.2,0.71232155]
[1645836847091,1.0987451,2830.3,2830.2,0.71232155]
[1645836850454,0.8536,2830.2,2830.1,4.209e-05]
[1645836850646,0.15632015,2830.1,2829.0,0.00532084]
[1645836850843,1.02316608,2829.1,2828.8,0.00532084]
[1645836851039,1.02316608,2829.1,2828.4,0.00532084]
[1645836851244,1.02316608,2829.1,2828.0,1.0]
[1645836851245,0.5664,2829.0,2828.0,0.00532084]
[1645836851450,1.20176353,2828.1,2827.5,0.00532084]
[1645836851640,1.20176353,2828.1,2827.6,0.36862297]
[1645836852055,1.20176353,2828.1,2827.2,0.448]
[1645836852056,0.18717955,2828.7,2827.2,0.00532084]
[1645836852243,6.5083,2828.9,2827.5,0.3533]
[1645836852441,6.5083,2828.9,2827.6,0.37393478]
[1645836852641,6.5083,2828.9,2827.4,1.76868]
[1645836852642,6.5083,2828.9,2827.7,0.37393478]
[1645836852840,0.21382178,2829.0,2827.8,0.36861394]
[1645836853042,1.19626652,2828.0,2827.9,0.00532084]
[1645836853283,0.30254102,2829.1,2828.1,0.00515139]
[1645836853885,0.1414,2829.1,2828.1,0.00515139]
[1645836854084,0.1414,2829.1,2827.5,3.50532084]
[1645836854286,1.22384573,2827.9,2827.6,0.35567312]
[1645836854484,1.22384573,2827.9,2827.4,1.76868]
[1645836854789,0.6543156,2829.1,2827.5,0.3533]
[1645836854790,0.18504547,2829.0,2827.5,0.3533]
[1645836854985,1.1342,2829.1,2827.7,0.3533]
[1645836855384,1.1342,2829.1,2827.8,0.00532084]
[1645836855800,1.22055719,2827.9,2827.8,0.00532084]
[1645836855987,1.22055719,2827.9,2827.4,10.21868]
[1645836855988,1.22055719,2827.9,2827.4,1.76868]
[1645836856287,1.22055719,2827.9,2827.2,0.00532084]
[1645836856585,1.26210366,2828.6,2827.0,1.77425084]
[1645836856784,0.1414,2828.5,2827.0,1.76893]
[1645836857030,0.1414,2828.5,2827.1,0.00532084]
[1645836857229,0.1414,2828.5,2827.5,0.3533]
[1645836857435,1.36497389,2828.0,2827.4,0.00532084]
[1645836857632,1.36497389,2828.0,2827.2,0.00532084]
[1645836857831,0.17907675,2829.0,2827.2,1.0]
[1645836857832,1.37994886,2827.5,2827.2,1.0]
[1645836858030,0.1414,2828.6,2827.2,1.0]
[1645836858235,0.1414,2828.6,2827.9,0.00595062]
[1645836858431,0.16025121,2828.7,2827.9,0.00595062]
[1645836858831,0.1414,2828.6,2827.9,0.00595062]
[1645836859032,1.32010661,2828.5,2827.3,0.00532084]
[1645836859234,1.38162752,2827.4,2827.3,0.00532084]
[1645836859436,1.38162752,2827.4,2827.2,1.18443]
[1645836859634,1.38162752,2827.4,2826.9,2.95305]
[1645836859836,1.38162752,2827.4,2827.0,0.3]
[1645836860439,1.38162752,2827.4,2826.8,0.88462]
[1645836860642,1.38162752,2827.4,2826.3,0.00532084]
[1645836860887,0.1414,2827.3,2826.3,0.00532084]
[1645836861090,1.15230326,2826.4,2826.1,3.54295084]
[1645836861287,1.15230326,2826.4,2826.1,3.53763]
[1645836861488,1.15230326,2826.4,2826.2,0.04206333]
[1645836861489,0.5578235,2826.4,2826.2,0.04206333]
[1645836862888,0.5578235,2826.4,2826.2,0.04796238]
[1645836863089,0.1414,2827.1,2826.2,0.04796238]
[1645836863292,0.1414,2827.1,2826.3,0.04149491]
[1645836863488,0.1414,2827.5,2826.3,0.04149491]
[1645836863691,0.1414,2827.5,2826.5,0.88477]
[1645836864090,0.33478458,2827.5,2826.6,0.00586096]
[1645836864291,1.13086682,2827.4,2826.6,0.00586096]
[1645836864528,1.38550827,2826.7,2826.6,0.00586096]
[1645836864931,1.38550827,2826.7,2826.3,0.04149491]
[1645836865337,1.38550827,2826.7,2826.5,0.00586105]
[1645836866134,1.38550827,2826.7,2826.1,0.0479526]
[1645836866334,1.24633549,2826.2,2826.1,0.04263176]
[1645836866538,1.24633549,2826.2,2826.1,0.0479526]
[1645836866739,1.24633549,2826.2,2826.1,0.04263176]
[1645836866939,1.24633549,2826.2,2825.8,0.02344992]
[1645836867338,1.38773549,2826.2,2825.8,0.02344992]
[1645836867537,0.19086079,2826.1,2825.8,0.02344992]
[1645836867736,0.19086079,2826.1,2824.9,0.00532084]
[1645836867737,0.1414,2826.0,2824.9,0.00532084]
[1645836867941,0.30435223,2826.0,2824.7,0.448]
[1645836868137,1.37867592,2825.0,2824.8,0.00532084]
[1645836868386,0.38277955,2825.0,2824.7,0.448]
[1645836868784,0.38277955,2825.0,2824.3,0.00532084]
[1645836868989,0.1416,2825.0,2823.7,3.44601084]
[1645836869185,0.1416,2825.0,2823.8,0.448]
[1645836869393,0.36640702,2825.0,2823.8,0.448]
[1645836869691,0.1416,2825.0,2823.5,11.6875]
[1645836869889,0.21754452,2825.3,2823.5,3.8533]
[1645836869890,0.15699502,2825.3,2823.5,3.8533]
[1645836870093,1.1444,2825.7,2823.7,0.3533]
[1645836870293,1.1444,2825.7,2823.9,0.3533]
[1645836870499,0.1416,2825.6,2824.0,0.3533]
[1645836870896,0.1416,2825.6,2824.0,1.3533]
[1645836871094,1.22538925,2825.0,2824.0,1.3533]
[1645836871293,1.22538925,2825.0,2824.7,0.00578971]
[1645836871495,0.1416,2825.6,2824.7,0.00578971]
[1645836871696,0.13819997,2825.9,2824.7,0.00578971]
[1645836872130,0.13819997,2825.9,2824.4,0.3]
[1645836872334,0.27969997,2825.9,2824.4,0.3]
[1645836872531,0.27969997,2825.9,2825.2,0.00578882]
[1645836872532,1.05789749,2825.7,2825.2,0.00578882]
[1645836873139,0.27969997,2825.9,2825.2,0.00578882]
[1645836873337,1.1976,2826.0,2825.0,3.5]
[1645836873535,1.1976,2826.0,2824.9,0.3]
[1645836873536,0.1414,2826.3,2824.9,0.6]
[1645836873737,7.38140395,2826.4,2824.9,0.6]
[1645836873738,7.53579498,2826.4,2825.3,0.00578855]
[1645836873939,0.21647675,2826.3,2825.3,0.00578855]
[1645836874135,0.1414,2826.2,2825.3,0.00578855]
[1645836874436,1.07128941,2825.6,2825.3,0.00578855]
[1645836874636,1.07128941,2825.6,2824.8,2.07033]
[1645836875038,1.07128941,2825.6,2825.2,0.02341408]
[1645836875242,1.16551071,2825.6,2825.2,0.02341408]
[1645836875443,0.1414,2825.5,2825.2,0.02341408]
[1645836875992,0.21942993,2825.6,2825.2,0.02341408]
[1645836876193,1.0,2826.0,2824.9,2.12885079]
[1645836876391,0.20298486,2826.5,2824.9,2.12355]
[1645836876591,7.3636,2826.4,2824.9,1.77025]
[1645836876795,7.3636,2826.4,2825.0,0.00530079]
[1645836876796,0.20589847,2826.3,2825.0,0.00530079]
[1645836876991,1.34085405,2825.4,2825.0,0.00530079]
[1645836877193,0.29634488,2826.2,2824.9,1.72025]
[1645836877392,0.30931149,2826.2,2825.0,0.00530079]
[1645836877593,0.1414,2826.2,2825.0,0.00530079]
[1645836877997,0.35925159,2826.2,2825.0,0.00530079]
[1645836878401,0.15229153,2826.1,2825.0,0.00530079]
[1645836878595,0.1414,2826.0,2825.0,0.00530079]
[1645836878795,0.33938628,2826.0,2824.9,1.72025]
[1645836878998,0.29545374,2826.0,2824.9,1.72025]
[1645836879195,0.34434317,2826.0,2824.9,1.72025]
[1645836879396,1.37996136,2825.4,2824.9,1.72025]
[1645836879642,1.37996136,2825.4,2825.3,0.00577467]
[1645836880044,0.1414,2826.0,2825.3,0.00577467]
[1645836880448,0.46063311,2826.0,2825.3,0.00577467]
[1645836880648,0.15769622,2825.9,2825.3,0.00577467]
[1645836880849,0.31520946,2825.8,2825.3,0.00577467]
[1645836881061,0.31520946,2825.8,2825.5,7.715e-05]
[1645836881251,1.49905295,2825.7,2825.5,7.715e-05]
[1645836881447,0.00072285,2825.4,2825.1,0.02271199]
[1645836881652,0.1414,2825.3,2825.1,0.02271199]
[1645836881855,1.124362,2825.2,2823.9,0.00530079]
[1645836882050,0.1416,2825.1,2823.9,0.89083079]
[1645836882252,0.1416,2825.1,2823.9,0.88553]
[1645836882452,0.1416,2825.1,2824.0,0.00530079]
[1645836883277,1.41371318,2824.3,2824.0,0.00530079]
[1645836883485,1.41371318,2824.3,2823.9,0.88553]
[1645836883885,1.41371318,2824.3,2823.3,1.54]
[1645836883886,1.41371318,2824.3,2823.5,0.88564]
[1645836884087,0.18720235,2824.8,2823.5,0.88564]
[1645836884287,0.1416,2824.7,2823.6,0.00530079]
[1645836884587,0.1416,2824.7,2823.8,0.00501827]
[1645836885087,1.1316666,2824.1,2823.8,0.00501827]
[1645836885590,1.1316666,2824.1,2823.4,0.00530079]
[1645836885891,1.1316666,2824.1,2823.8,0.00582938]
[1645836886787,1.1316666,2824.1,2823.3,0.54530079]
[1645836887033,1.1316666,2824.1,2823.3,0.54]
[1645836887227,1.1316666,2824.1,2823.8,0.00582938]
[1645836887628,1.2732666,2824.1,2823.8,0.00582938]
[1645836887829,1.2732666,2824.1,2823.4,0.00530079]
[1645836888029,0.95406663,2823.6,2823.3,0.54]
[1645836888231,0.95406663,2823.6,2823.4,0.02332104]
[1645836888433,0.95406663,2823.6,2823.3,0.51332104]
[1645836889033,0.21161979,2823.7,2822.5,0.00530079]
[1645836889034,1.10780454,2822.8,2822.5,0.00530079]
[1645836889234,0.1416,2823.6,2822.2,2.33406]
[1645836889436,0.36416399,2823.7,2822.3,0.00530079]
[1645836889835,0.16168329,2823.6,2822.3,0.00530079]
[1645836890037,0.1416,2823.5,2822.3,0.00530079]
[1645836890438,0.30260747,2823.5,2822.3,0.00530079]
[1645836891086,7.8731,2823.8,2822.5,0.88591]
[1645836891293,7.8731,2823.8,2822.6,0.00530079]
[1645836891294,1.10086467,2823.6,2822.6,0.00530079]
[1645836891491,1.10086467,2823.6,2822.6,0.30530079]
[1645836891685,1.10086467,2823.6,2822.6,0.00530079]
[1645836891985,0.48466351,2823.7,2822.6,0.00530079]
[1645836891986,0.1416,2823.7,2822.6,0.00530079]
[1645836892183,0.1416,2823.7,2822.4,0.00530079]
[1645836892382,0.22200822,2823.6,2822.4,0.00530079]
[1645836892583,0.1416,2823.5,2822.4,0.00530079]
[1645836892786,1.58876163,2823.8,2822.7,0.3533]
[1645836892787,0.13819997,2823.8,2822.7,0.3533]
[1645836892984,0.13819997,2823.8,2822.9,0.00570233]
[1645836892985,0.00249515,2823.5,2822.9,0.00570233]
[1645836893387,0.00249515,2823.5,2822.9,0.30570233]
[1645836893584,0.00249515,2823.5,2822.9,0.65900233]
[1645836893988,0.1416,2824.1,2822.9,0.6533]
[1645836894190,3.68308,2826.4,2822.9,0.6533]
[1645836894191,0.00276204,2823.5,2823.1,11.15908211]
[1645836894390,0.00097774,2823.5,2823.3,11.1533]
[1645836894633,0.00097774,2823.5,2823.4,11.5783]
[1645836894832,0.4764,2825.1,2823.4,11.8783]
[1645836895035,0.4764,2825.1,2823.6,0.3533]
[1645836895232,0.1416,2825.0,2824.0,0.3533]
[1645836895433,0.4764,2825.1,2824.1,0.00530079]
[1645836895838,0.4764,2825.1,2824.1,0.35860079]
[1645836896237,0.4764,2825.1,2824.3,1.6533]
[1645836896440,0.4764,2825.1,2824.3,1.3]
[1645836897237,0.4764,2825.1,2824.4,0.3533]
[1645836897842,0.00082773,2824.8,2824.4,1.3533]
[1645836898139,0.00082773,2824.8,2824.4,0.3533]
[1645836898382,0.00082773,2824.8,2824.6,0.3533]
[1645836898583,0.00082773,2824.8,2824.5,1.0]
[1645836898784,0.4764,2825.1,2824.5,0.3]
[1645836898988,0.4764,2825.1,2824.6,1.0]
[1645836898989,0.00082773,2824.7,2824.6,1.0]
[1645836899192,0.00082773,2824.7,2824.6,1.3]
[1645836899385,0.00082773,2824.7,2824.6,0.3]
[1645836899787,0.4764,2825.1,2824.4,1.3]
[1645836900188,0.00082773,2824.8,2824.4,1.3]
[1645836900991,0.4764,2825.1,2824.4,0.3]
[1645836901194,0.4764,2825.1,2824.3,0.00530079]
[1645836901397,0.4764,2825.1,2823.9,1.77081]
[1645836901398,0.00275533,2824.7,2824.1,0.00530079]
[1645836901594,0.00195132,2824.7,2823.9,1.77081]
[1645836902235,0.1416,2825.0,2823.9,1.77081]
[1645836902436,1.32934991,2824.9,2823.9,1.77081]
[1645836902740,0.1416,2824.8,2823.9,1.77081]
[1645836902941,0.1416,2825.1,2824.0,0.00530079]
[1645836903144,0.1416,2825.1,2823.9,1.77081]
[1645836903345,0.1416,2825.1,2824.0,0.00530079]
[1645836903642,0.1416,2825.1,2824.2,0.88539]
[1645836903843,1.42074537,2825.1,2824.3,0.3]
[1645836904043,1.42074537,2825.1,2824.2,0.88539]
[1645836904649,1.27914537,2825.1,2824.2,0.88539]
[1645836905249,0.03007744,2825.3,2824.0,0.00530079]
[1645836905445,0.00072285,2825.4,2824.0,0.00530079]
[1645836905446,0.1416,2825.0,2824.0,0.00530079]
[1645836905647,0.1416,2825.0,2823.9,1.77081]
[1645836905885,0.1416,2825.3,2823.9,1.77081]
[1645836906083,1.00072285,2825.4,2824.0,0.00530079]
[1645836906285,0.00275332,2824.6,2824.0,0.00530079]
[1645836906485,0.00275332,2824.6,2823.9,2.37081]
[1645836907091,1.00072285,2825.4,2824.0,0.20816391]
[1645836907284,0.00082976,2824.4,2824.0,0.2134647]
[1645836907485,0.00082976,2824.4,2824.1,0.20822236]